bitfinex-derivatives/quotes_SOLF0:USTF0_20260312
["timestamp","ask_amount","ask_price","bid_price","bid_amount"]
[1773339745200,162.449,86.168,86.014,36.48]
[1773339745201,3.04146795,86.152,86.053,3.96766476]
[1773339745602,3.45767304,86.12,86.08,3.96766476]
[1773339746307,3.04146795,86.099,86.05,3.45767304]
[1773339746702,3.04146795,86.099,86.051,3.96766476]
[1773339746909,3.45767304,86.09,86.051,3.96766476]
[1773339748306,2.95146673,86.09,86.036,3.96766476]
[1773339748510,3.45767304,86.07,86.036,3.96766476]
[1773339748908,3.45767304,86.08,86.036,3.96766476]
[1773339751011,3.45767304,86.08,86.027,10.46]
[1773339751012,2.80669565,86.079,86.027,10.46]
[1773339751310,2.80669565,86.079,86.021,3.96766476]
[1773339751811,2.80669565,86.079,86.031,3.96766476]
[1773339752511,10.452,86.089,86.041,3.96766476]
[1773339752707,10.451,86.099,86.051,3.96766476]
[1773339753302,16.64438556,86.11,86.051,3.96766476]
[1773339753504,3.45767304,86.12,86.071,3.96766476]
[1773339753704,2.7592421,86.125,86.071,3.96766476]
[1773339754111,10.449,86.115,86.071,3.96766476]
[1773339755216,3.45767304,86.11,86.071,3.96766476]
[1773339755520,10.448,86.124,86.071,3.96766476]
[1773339756316,10.449,86.117,86.071,3.96766476]
[1773339756612,10.449,86.117,86.08,3.96766476]
[1773339756914,6.49107195,86.12,86.064,3.96766476]
[1773339757907,10.45,86.109,86.064,3.96766476]
[1773339758105,10.45,86.109,86.07,3.45767304]
[1773339758310,10.449,86.118,86.07,3.45767304]
[1773339759015,10.449,86.118,86.07,7.4253378]
[1773339759514,10.45,86.111,86.07,3.96766476]
[1773339759713,10.45,86.111,86.07,7.4253378]
[1773339760716,10.45,86.111,86.071,3.96766476]
[1773339760911,10.45,86.111,86.07,3.45767304]
[1773339760912,10.449,86.119,86.081,3.96766476]
[1773339761118,3.04171901,86.139,86.092,3.96766476]
[1773339761318,3.04171901,86.139,86.1,3.45767304]
[1773339761519,3.45767304,86.15,86.1,3.45767304]
[1773339761819,3.45767304,86.15,86.092,3.96766476]
[1773339762021,10.447,86.136,86.094,3.96766476]
[1773339762518,10.447,86.13,86.094,3.96766476]
[1773339762711,3.04144971,86.149,86.094,3.96766476]
[1773339763620,10.446,86.139,86.095,10.451]
[1773339764218,10.446,86.139,86.094,3.96766476]
[1773339764219,10.447,86.133,86.094,3.96766476]
[1773339764520,3.03904719,86.139,86.094,3.96766476]
[1773339765109,3.45767304,86.15,86.1,3.45767304]
[1773339765315,3.45767304,86.15,86.102,3.8120245]
[1773339765522,3.032405,86.197,86.141,3.8120245]
[1773339765719,3.032405,86.197,86.15,7.26969754]
[1773339765918,3.45767304,86.2,86.151,3.8120245]
[1773339766117,3.45767304,86.21,86.16,3.45767304]
[1773339766321,6.49007804,86.21,86.16,3.45767304]
[1773339766622,3.032405,86.209,86.16,3.45767304]
[1773339767121,10.438,86.208,86.17,3.45767304]
[1773339767414,3.12616132,86.219,86.161,3.8120245]
[1773339767609,3.12616132,86.219,86.162,3.8120245]
[1773339767814,3.12616132,86.219,86.17,3.45767304]
[1773339768016,3.12616132,86.235,86.181,3.8120245]
[1773339768416,3.45767304,86.23,86.181,3.8120245]
[1773339769118,3.12423878,86.229,86.181,3.8120245]
[1773339769315,6.58191182,86.22,86.165,3.8120245]
[1773339769521,3.45767304,86.21,86.165,3.8120245]
[1773339770323,10.438,86.209,86.165,3.8120245]
[1773339770725,3.12190709,86.208,86.152,10.445]
[1773339771226,3.12190709,86.208,86.16,3.45767304]
[1773339771617,3.12190709,86.208,86.153,3.91109307]
[1773339771918,10.438,86.207,86.16,3.45767304]
[1773339772116,3.45767304,86.22,86.17,3.45767304]
[1773339772516,10.438,86.21,86.17,3.45767304]
[1773339772722,10.438,86.21,86.162,3.91109307]
[1773339773520,10.439,86.201,86.15,17.81376611]
[1773339773719,3.01063882,86.204,86.15,17.81376611]
[1773339773720,3.45767304,86.2,86.151,3.91109307]
[1773339774920,10.439,86.198,86.151,3.91109307]
[1773339776220,10.44,86.188,86.14,3.45767304]
[1773339776421,10.44,86.188,86.141,3.91109307]
[1773339777328,3.05868437,86.18,86.131,3.91109307]
[1773339777528,3.45767304,86.19,86.14,3.45767304]
[1773339777824,3.44755287,86.19,86.14,3.44755287]
[1773339778024,10.442,86.177,86.131,3.91109307]
[1773339778215,3.44755287,86.17,86.12,3.44755287]
[1773339778416,3.44755287,86.16,86.115,3.91109307]
[1773339779626,3.05868437,86.169,86.115,3.91109307]
[1773339780223,10.443,86.166,86.115,3.91109307]
[1773339780828,3.05868437,86.169,86.115,3.91109307]
[1773339781024,10.443,86.167,86.116,10.449]
[1773339781324,2.97214087,86.185,86.117,3.91109307]
[1773339782323,2.97214087,86.169,86.091,3.91109307]
[1773339782721,2.97214087,86.169,86.104,3.91109307]
[1773339784029,10.444,86.158,86.107,3.91109307]
[1773339784932,10.443,86.166,86.115,10.449]
[1773339785827,10.443,86.166,86.118,3.91109307]
[1773339786231,10.444,86.159,86.118,3.91109307]
[1773339788227,10.443,86.167,86.118,3.91109307]
[1773339788428,10.443,86.167,86.119,3.91109307]
[1773339789324,10.444,86.161,86.119,3.91109307]
[1773339790335,2.94455701,86.166,86.123,14.35909307]
[1773339792032,2.94455701,86.166,86.114,10.449]
[1773339792230,2.94455701,86.166,86.115,3.91109307]
[1773339794036,10.443,86.164,86.118,10.449]
[1773339795226,2.93247518,86.152,86.106,10.45]
[1773339795431,2.9324813,86.149,86.078,3.91109307]
[1773339797440,2.9324813,86.149,86.102,14.36209307]
[1773339797940,10.446,86.142,86.102,3.91109307]
[1773339798136,2.9162933,86.142,86.085,3.91109307]
[1773339798629,10.447,86.136,86.095,10.451]
[1773339799738,2.88818025,86.158,86.102,3.91109307]
[1773339800240,10.446,86.137,86.102,3.91109307]
[1773339800437,2.88818025,86.158,86.102,3.91109307]
[1773339800939,10.446,86.144,86.102,3.91109307]
[1773339801336,2.88818025,86.158,86.102,3.91109307]
[1773339801532,3.45112359,86.14,86.102,3.91109307]
[1773339801732,10.445,86.146,86.102,3.91109307]
[1773339801930,3.45112359,86.14,86.102,3.91109307]
[1773339802735,3.45112359,86.14,86.063,20.911]
[1773339802736,10.446,86.139,86.096,10.451]
[1773339803642,3.45112359,86.12,86.071,3.78658675]
[1773339804945,3.45112359,86.13,86.081,3.78658675]
[1773339805245,3.45112359,86.13,86.093,10.452]
[1773339805645,3.45112359,86.13,86.081,3.78658675]
[1773339805853,2.82104666,86.119,86.066,3.78658675]
[1773339806643,36.5,86.151,86.071,3.78658675]
[1773339806647,3.45112359,86.13,86.071,3.78658675]
[1773339806847,2.82104666,86.149,86.091,3.78658675]
[1773339807639,10.446,86.141,86.098,10.451]
[1773339807840,2.82104666,86.149,86.098,10.451]
[1773339808044,2.82104666,86.149,86.091,3.78658675]
[1773339808242,3.45112359,86.14,86.091,3.78658675]
[1773339808553,2.81781163,86.136,86.091,3.78658675]
[1773339808947,10.447,86.135,86.091,14.23858675]
[1773339809752,10.446,86.143,86.097,10.451]
[1773339810252,10.447,86.136,86.097,10.451]
[1773339810948,10.446,86.144,86.103,10.45]
[1773339812448,2.84102055,86.143,86.103,10.45]
[1773339812645,2.84102055,86.139,86.091,3.78658675]
[1773339813751,2.84102055,86.139,86.092,10.452]
[1773339814255,6.29258331,86.13,86.086,3.78658675]
[1773339815152,6.29258331,86.13,86.088,14.23858675]
[1773339815454,6.29258331,86.13,86.08,3.45112359]
[1773339815455,2.84145972,86.13,86.089,3.78658675]
[1773339816952,2.84145972,86.13,86.092,10.452]
[1773339818057,10.447,86.129,86.092,10.452]
[1773339819558,10.447,86.129,86.089,3.78658675]
[1773339820658,10.447,86.129,86.09,10.452]
[1773339822263,10.447,86.136,86.095,10.451]
[1773339822853,10.447,86.13,86.09,7.23771034]
[1773339823063,10.447,86.13,86.09,3.78658675]
[1773339823263,10.447,86.134,86.097,10.451]
[1773339823459,2.86744219,86.136,86.09,3.78658675]
[1773339824264,2.88721426,86.129,86.08,3.45112359]
[1773339824464,2.88721426,86.109,86.057,4.01091349]
[1773339824668,6.33833785,86.09,86.043,4.01091349]
[1773339824968,2.88721426,86.088,86.043,4.01091349]
[1773339825163,36.5,86.117,86.043,4.01091349]
[1773339825467,10.451,86.096,86.053,4.01091349]
[1773339825664,2.88651665,86.095,86.04,3.45112359]
[1773339825967,2.88651665,86.095,86.041,4.01091349]
[1773339826168,10.452,86.092,86.041,4.01091349]
[1773339826360,3.45112359,86.1,86.05,3.45112359]
[1773339826564,2.88651665,86.109,86.051,4.01091349]
[1773339827065,13.33976416,86.099,86.051,4.01091349]
[1773339827266,2.88876416,86.079,86.035,4.01091349]
[1773339827471,2.88876416,86.079,86.021,4.01091349]
[1773339827672,20.897,86.122,86.021,4.01091349]
[1773339827673,2.88876416,86.066,86.021,4.01091349]
[1773339828770,2.88876416,86.066,86.023,10.46]
[1773339828966,2.88876416,86.066,86.024,4.01091349]
[1773339832970,3.45112359,86.08,86.024,4.01091349]
[1773339833570,3.45112359,86.08,86.031,3.88145545]
[1773339833976,2.95796403,86.097,86.041,3.88145545]
[1773339834173,2.95796403,86.097,86.05,3.45112359]
[1773339834572,3.45112359,86.08,86.031,3.88145545]
[1773339834975,6.40908762,86.08,86.031,3.88145545]
[1773339835473,10.453,86.079,86.032,10.459]
[1773339836268,2.95796403,86.08,86.038,10.458]
[1773339836466,3.45112359,86.09,86.04,3.45112359]
[1773339836666,2.95724123,86.094,86.04,7.33257904]
[1773339837377,13.51645914,86.084,86.04,7.33257904]
[1773339837572,3.06345914,86.084,86.04,3.45112359]
[1773339837878,3.06345914,86.092,86.045,14.33845545]
[1773339838073,3.06345914,86.089,86.045,14.33845545]
[1773339838377,3.06345914,86.089,86.046,3.88145545]
[1773339838874,3.06345914,86.089,86.048,10.457]
[1773339839373,3.06345914,86.089,86.004,21.39780419]
[1773339839374,3.06230865,86.109,86.05,3.45112359]
[1773339839579,10.45,86.106,86.06,7.33569449]
[1773339840478,10.45,86.106,86.06,3.88145545]
[1773339841676,3.06230865,86.109,86.062,10.455]
[1773339841868,3.06230865,86.109,86.022,20.921]
[1773339841869,3.04050053,86.125,86.071,3.88145545]
[1773339842068,3.04050053,86.125,86.08,3.45423904]
[1773339842272,3.04050053,86.125,86.081,3.88145545]
[1773339842472,10.447,86.135,86.09,3.45423904]
[1773339842668,10.447,86.135,86.1,3.45423904]
[1773339843073,3.04050053,86.153,86.101,3.88145545]
[1773339843270,3.04050053,86.153,86.11,3.45423904]
[1773339843981,3.04050053,86.153,86.101,3.88145545]
[1773339844280,3.14043086,86.149,86.09,3.45423904]
[1773339844471,3.14043086,86.149,86.091,3.88145545]
[1773339844672,3.14043086,86.132,86.09,3.45423904]
[1773339844878,3.14043086,86.132,86.08,3.45423904]
[1773339845084,3.14043086,86.132,86.09,3.45423904]
[1773339845279,3.14043086,86.132,86.091,3.88145545]
[1773339845779,3.14043086,86.132,86.091,14.33345545]
[1773339846480,3.13519597,86.146,86.095,14.33245545]
[1773339847776,3.14265741,86.138,86.083,10.453]
[1773339848079,3.45423904,86.14,86.083,10.453]
[1773339848080,3.14265741,86.129,86.083,10.453]
[1773339848276,3.14265741,86.129,86.083,14.33445545]
[1773339848475,13.58865741,86.143,86.091,10.452]
[1773339848677,10.446,86.143,86.101,3.88145545]
[1773339849073,3.11821091,86.205,86.121,3.88145545]
[1773339849375,3.11821091,86.169,86.102,3.88145545]
[1773339849581,3.11821091,86.159,86.102,3.88145545]
[1773339849779,3.11821091,86.159,86.11,3.88145545]
[1773339849976,3.11821091,86.159,86.11,7.33569449]
[1773339850375,3.11821091,86.158,86.11,7.33569449]
[1773339850781,3.11821091,86.158,86.11,3.88145545]
[1773339851379,3.18629651,86.157,86.11,3.88145545]
[1773339851985,6.64053555,86.15,86.1,3.45423904]
[1773339852581,13.63229651,86.141,86.092,10.452]
[1773339852779,14.19958398,86.223,85.861,115.3477216]
[1773339852780,3.45423904,86.12,86.071,3.88145545]
[1773339853185,13.63329651,86.129,86.087,10.452]
[1773339853380,13.63329651,86.129,86.071,3.88145545]
[1773339853580,3.45423904,86.12,86.071,3.88145545]
[1773339854583,3.45423904,86.12,86.08,10.453]
[1773339857985,3.18642087,86.128,86.086,10.452]
[1773339859390,3.18642087,86.128,86.087,3.88145545]
[1773339859790,3.18642087,86.128,86.09,10.452]
[1773339859987,10.448,86.127,86.087,3.88145545]
[1773339860187,3.45423904,86.12,86.087,3.88145545]
[1773339860890,10.448,86.127,86.087,3.88145545]
[1773339861885,13.57943115,86.127,86.087,3.88145545]
[1773339862084,3.45423904,86.12,86.087,3.88145545]
[1773339862990,3.45423904,86.14,86.087,3.88145545]
[1773339863892,3.45423904,86.14,86.095,10.451]
[1773339864993,3.45423904,86.12,86.073,3.97592105]
[1773339865394,3.12988301,86.129,86.073,3.97592105]
[1773339866693,3.12988301,86.129,86.094,10.452]
[1773339867088,3.45423904,86.13,86.094,10.452]
[1773339869195,3.45423904,86.13,86.101,3.97592105]
[1773339869594,3.45423904,86.14,86.101,3.97592105]
[1773339870998,3.45423904,86.15,86.091,3.97592105]
[1773339871398,3.45423904,86.14,86.091,3.97592105]
[1773339871690,3.45423904,86.16,86.11,3.45423904]
[1773339871896,3.45423904,86.16,86.111,3.97592105]
[1773339872297,13.59560578,86.168,86.126,10.448]
[1773339872695,3.45423904,86.16,86.126,10.448]
[1773339873694,13.59560578,86.168,86.126,10.448]
[1773339874987,3.15260578,86.168,86.126,10.448]
[1773339875187,39.67474614,86.183,86.135,10.447]
[1773339875395,39.67474614,86.183,86.08,21.39780419]
[1773339875396,3.45423904,86.19,86.141,3.97592105]
[1773339876093,3.15474614,86.189,86.147,10.445]
[1773339876396,3.45423904,86.18,86.141,3.97592105]
[1773339876597,3.45423904,86.17,86.141,3.97592105]
[1773339876798,3.45423904,86.16,86.116,3.97592105]
[1773339876994,3.45423904,86.15,86.116,3.97592105]
[1773339877195,3.15474614,86.169,86.116,3.97592105]
[1773339877196,10.443,86.166,86.123,10.448]
[1773339877391,3.45423904,86.16,86.123,10.448]
[1773339877587,3.45423904,86.16,86.116,3.97592105]
[1773339877791,3.45423904,86.17,86.116,3.97592105]
[1773339877991,3.45423904,86.16,86.116,3.97592105]
[1773339879897,3.45423904,86.16,86.131,10.447]
[1773339880098,3.45423904,86.17,86.131,10.447]
[1773339881901,10.443,86.168,86.129,3.97592105]
[1773339882597,3.45423904,86.16,86.129,3.97592105]
[1773339883194,13.21040856,86.176,86.129,14.42292105]
[1773339883399,3.45423904,86.16,86.129,14.42292105]
[1773339885200,3.45423904,86.16,86.122,10.448]
[1773339885400,3.45423904,86.15,86.122,14.36845048]
[1773339886804,3.45423904,86.15,86.122,10.448]
[1773339887000,3.45423904,86.15,86.088,21.61517456]
[1773339887001,3.45423904,86.14,86.095,3.92045048]
[1773339888205,3.45423904,86.14,86.103,3.92045048]
[1773339888402,3.45423904,86.14,86.063,20.911]
[1773339888403,2.76634756,86.119,86.077,14.29812203]
[1773339888601,3.45423904,86.12,86.093,10.452]
[1773339888801,2.76634756,86.134,86.093,10.452]
[1773339889112,3.45423904,86.12,86.093,10.452]
[1773339889714,3.45423904,86.13,86.097,3.92045048]
[1773339890315,3.45423904,86.12,86.071,3.90951899]
[1773339890514,3.45423904,86.12,86.083,3.90951899]
[1773339892016,3.45423904,86.13,86.083,3.90951899]
[1773339893116,3.45423904,86.13,86.095,10.451]
[1773339893414,3.45423904,86.13,86.083,3.90951899]
[1773339894518,3.45423904,86.12,86.083,3.90951899]
[1773339895216,3.45423904,86.12,86.094,10.452]
[1773339895718,3.45423904,86.13,86.094,10.452]
[1773339898312,3.45423904,86.13,86.083,3.90951899]
[1773339898617,3.45423904,86.15,86.108,3.90951899]
[1773339899712,3.45049218,86.14,86.108,3.90951899]
[1773339900820,3.45049218,86.12,86.091,3.90951899]
[1773339901914,3.45049218,86.12,86.078,3.90951899]
[1773339902114,3.45049218,86.1,86.074,14.29812203]
[1773339902319,3.45049218,86.1,86.066,14.29812203]
[1773339902515,3.45049218,86.11,86.079,10.453]
[1773339902714,2.48861762,86.132,86.08,3.90951899]
[1773339902924,3.45049218,86.12,86.08,3.90951899]
[1773339903326,3.45049218,86.11,86.08,3.90951899]
[1773339904528,36.52,86.142,86.064,3.90951899]
[1773339904529,3.45049218,86.1,86.064,3.90951899]
[1773339904727,3.45049218,86.09,86.064,3.90951899]
[1773339904928,3.45049218,86.1,86.064,3.90951899]
[1773339905524,3.45049218,86.1,86.066,10.455]
[1773339907530,3.45049218,86.11,86.064,3.90951899]
[1773339907730,3.45049218,86.12,86.071,3.90951899]
[1773339907920,10.449,86.119,86.079,10.453]
[1773339908321,10.449,86.119,86.071,3.90951899]
[1773339909529,3.45049218,86.11,86.071,3.90951899]
[1773339909730,3.45049218,86.1,86.057,3.90951899]
[1773339910028,2.57367021,86.106,86.057,3.90951899]
[1773339910229,2.57367021,86.106,86.073,10.454]
[1773339910534,3.45049218,86.11,86.073,10.454]
[1773339913532,3.45049218,86.11,86.066,3.90951899]
[1773339914535,3.45049218,86.11,86.072,10.454]
[1773339915338,13.02267021,86.119,86.078,10.453]
[1773339915833,10.64547747,86.172,86.066,3.90951899]
[1773339915834,3.45049218,86.14,86.091,3.90951899]
[1773339916139,3.45049218,86.19,86.131,3.90951899]
[1773339916340,3.45049218,86.19,86.141,3.90951899]
[1773339916740,6.05795312,86.19,86.141,3.90951899]
[1773339917041,2.60746094,86.189,86.141,3.90951899]
[1773339917335,13.04746094,86.189,86.143,10.446]
[1773339918438,3.45049218,86.17,86.126,3.90951899]
[1773339918634,6.07571598,86.17,86.126,3.90951899]
[1773339918836,2.6252238,86.169,86.111,3.90951899]
[1773339919041,3.45049218,86.16,86.113,10.449]
[1773339919243,3.45049218,86.16,86.111,3.90951899]
[1773339919842,2.6252238,86.169,86.128,10.447]
[1773339920243,3.45049218,86.18,86.131,3.89643898]
[1773339920841,2.58321264,86.185,86.131,3.89643898]
[1773339921137,2.58321264,86.185,86.144,10.446]
[1773339921531,3.45049218,86.19,86.144,14.34243898]
[1773339921933,3.45049218,86.19,86.15,10.445]
[1773339922239,13.00720617,86.189,86.145,3.89643898]
[1773339922444,2.56720617,86.189,86.147,14.34143898]
[1773339922840,3.45049218,86.18,86.13,3.45049218]
[1773339923045,3.45049218,86.18,86.133,3.89643898]
[1773339923340,2.56720617,86.189,86.145,3.89643898]
[1773339923544,3.45049218,86.19,86.145,3.89643898]
[1773339924447,3.45049218,86.19,86.149,10.445]
[1773339925444,13.03150525,86.189,86.145,3.89643898]
[1773339925845,3.45049218,86.18,86.145,3.89643898]
[1773339926044,3.45049218,86.17,86.131,3.89643898]
[1773339926949,3.45049218,86.17,86.138,10.446]
[1773339928444,3.45049218,86.17,86.131,14.34343898]
[1773339929646,3.45049218,86.18,86.135,3.89643898]
[1773339930949,3.45049218,86.18,86.138,10.446]
[1773339932848,3.45049218,86.18,86.141,10.446]
[1773339933043,3.45049218,86.19,86.141,3.89643898]
[1773339933243,2.58563152,86.203,86.151,3.89643898]
[1773339933439,2.58563152,86.203,86.104,21.61517456]
[1773339933440,3.45049218,86.22,86.171,3.89643898]
[1773339933655,10.436,86.227,86.171,3.89643898]
[1773339934045,3.45049218,86.23,86.182,14.33743898]
[1773339934247,3.45049218,86.22,86.182,3.89643898]
[1773339935248,2.62513267,86.229,86.182,3.89643898]
[1773339935454,2.62513267,86.229,86.182,14.33743898]
[1773339935753,2.62513267,86.229,86.183,3.89643898]
[1773339936454,2.62513267,86.229,86.185,10.44]
[1773339936651,3.45049218,86.24,86.186,3.89643898]
[1773339936951,3.45049218,86.24,86.191,3.89643898]
[1773339937354,3.45049218,86.24,86.197,3.89643898]
[1773339937553,3.45049218,86.23,86.182,3.89643898]
[1773339937855,2.66306557,86.239,86.182,3.89643898]
[1773339938053,3.45049218,86.23,86.182,3.89643898]
[1773339938357,10.434,86.237,86.195,3.89643898]
[1773339941351,2.729371,86.237,86.195,3.89643898]
[1773339941653,36.52,86.267,86.18,3.45049218]
[1773339941654,2.729371,86.229,86.18,3.89643898]
[1773339942357,2.729371,86.229,86.183,3.89643898]
[1773339943054,10.435,86.228,86.185,10.44]
[1773339946057,10.435,86.228,86.186,4.06208438]
[1773339947951,2.70315941,86.23,86.186,4.06208438]
[1773339947952,10.436,86.222,86.186,4.06208438]
[1773339948152,2.70315941,86.23,86.186,4.06208438]
[1773339948353,10.438,86.207,86.16,3.45049218]
[1773339948556,10.438,86.207,86.161,4.06208438]
[1773339948957,10.439,86.201,86.161,4.06208438]
[1773339949860,13.14115941,86.209,86.162,10.443]
[1773339950050,13.14115941,86.209,86.161,4.06208438]
[1773339950862,2.70437459,86.25,86.19,7.14458715]
[1773339951054,3.45049218,86.24,86.19,7.14458715]
[1773339951256,6.15486677,86.24,86.19,7.14458715]
[1773339951657,10.435,86.234,86.19,3.69409497]
[1773339951850,10.435,86.234,86.191,3.69409497]
[1773339952763,10.435,86.234,86.198,10.439]
[1773339953067,10.435,86.234,86.191,3.69409497]
[1773339953864,10.435,86.234,86.191,14.13409497]
[1773339954864,10.435,86.228,86.192,3.69409497]
[1773339955258,10.435,86.228,86.184,10.441]
[1773339956761,36.52,86.256,86.163,3.69409497]
[1773339956762,2.65141552,86.219,86.163,3.69409497]
[1773339957065,3.45049218,86.2,86.141,3.69409497]
[1773339957258,3.45049218,86.19,86.141,3.69409497]
[1773339957563,3.45049218,86.2,86.157,10.444]
[1773339957762,2.65141552,86.209,86.158,3.69409497]
[1773339958962,2.65141552,86.209,86.162,3.69409497]
[1773339959665,10.438,86.208,86.167,10.443]
[1773339960555,2.64256565,86.239,86.181,3.69409497]
[1773339960864,3.45049218,86.25,86.201,3.69409497]
[1773339961364,10.433,86.245,86.201,3.69409497]
[1773339962066,10.434,86.238,86.193,10.44]
[1773339962566,36.52,86.256,86.186,3.69409497]
[1773339962567,2.6415044,86.24,86.186,3.69409497]
[1773339963159,2.6415044,86.24,86.187,10.44]
[1773339964265,10.436,86.225,86.187,10.44]
[1773339964765,2.6415044,86.24,86.186,3.69409497]
[1773339965864,10.435,86.228,86.186,14.13409497]
[1773339966763,10.435,86.228,86.192,10.44]
[1773339967265,10.436,86.221,86.186,3.69409497]
[1773339967460,2.6415044,86.24,86.186,3.69409497]
[1773339968365,9.22145243,86.25,86.166,14.3620397]
[1773339968366,10.436,86.221,86.172,3.69409497]
[1773339968568,2.71211248,86.227,86.172,3.69409497]
[1773339969862,2.71211248,86.227,86.191,10.44]
[1773339970266,2.71211248,86.227,86.172,3.69409497]
[1773339970462,2.71211248,86.227,86.182,10.441]
[1773339971870,10.436,86.225,86.182,10.441]
[1773339972367,2.71518592,86.251,86.19,3.69409497]
[1773339973966,10.434,86.239,86.195,10.439]
[1773339974167,2.71518592,86.251,86.195,10.439]
[1773339974471,2.71821105,86.249,86.182,3.69409497]
[1773339975871,10.435,86.233,86.188,10.44]
[1773339976372,10.435,86.233,86.189,3.69409497]
[1773339978069,10.435,86.233,86.191,10.44]
[1773339978670,10.434,86.24,86.199,3.69409497]
[1773339978870,2.71658598,86.249,86.199,3.69409497]
[1773339979073,10.431,86.266,86.217,3.69409497]
[1773339979373,2.7167458,86.265,86.217,3.69409497]
[1773339979566,2.7167458,86.28,86.217,3.69409497]
[1773339979767,2.7167458,86.269,86.224,3.69409497]
[1773339980868,2.71379122,86.259,86.208,3.97e-05]
[1773339981069,2.71379122,86.259,86.182,4.04573754]
[1773339981070,2.71379122,86.239,86.182,4.04573754]
[1773339981472,3.11700419,86.226,86.182,4.04573754]
[1773339981674,3.11700419,86.226,86.166,4.04573754]
[1773339982074,10.437,86.215,86.166,4.04573754]
[1773339983776,10.437,86.215,86.169,10.442]
[1773339983980,10.437,86.215,86.17,4.04573754]
[1773339984582,36.52,86.232,86.174,4.04573754]
[1773339984880,3.14641267,86.231,86.174,4.04573754]
[1773339985885,10.436,86.223,86.174,4.04573754]
[1773339986083,3.14641267,86.231,86.174,4.04573754]
[1773339987377,10.436,86.223,86.177,10.441]
[1773339987581,10.436,86.223,86.177,14.48673754]
[1773339988078,10.436,86.223,86.178,4.04573754]
[1773339988276,13.58141267,86.231,86.181,10.441]
[1773339989181,9.22145243,86.24,86.188,4.04573754]
[1773339989388,10.434,86.241,86.188,4.04573754]
[1773339989780,10.434,86.241,86.2,4.04573754]
[1773339990184,10.435,86.233,86.2,4.04573754]
[1773339990585,10.435,86.233,86.17,4.04573754]
[1773339991387,3.14187597,86.228,86.17,4.04573754]
[1773339992486,3.14187597,86.228,86.175,4.04573754]
[1773339993888,3.14187597,86.228,86.184,10.441]
[1773339994484,10.434,86.239,86.187,4.04573754]
[1773339994989,3.14189611,86.239,86.171,4.04573754]
[1773339995887,10.435,86.232,86.187,10.44]
[1773339996791,10.435,86.232,86.193,4.04573754]
[1773339997288,3.14189611,86.239,86.195,10.439]
[1773339998892,10.434,86.238,86.195,10.439]
[1773339999594,3.4438813,86.23,86.195,10.439]
[1773339999894,3.4438813,86.22,86.193,4.04573754]
[1773340000290,10.436,86.225,86.181,10.441]
[1773340000500,3.4438813,86.22,86.181,10.441]
[1773340000900,3.4438813,86.22,86.187,10.44]
[1773340002895,3.4438813,86.22,86.181,4.00426145]
[1773340003295,3.4438813,86.21,86.181,4.00426145]
[1773340003492,3.4438813,86.2,86.165,4.00426145]
[1773340003996,3.4438813,86.2,86.152,4.00426145]
[1773340005201,3.15714524,86.219,86.152,4.00426145]
[1773340005398,3.4438813,86.21,86.152,4.00426145]
[1773340006004,10.438,86.207,86.166,10.443]
[1773340006705,3.4438813,86.19,86.152,4.00426145]
[1773340006906,3.13656542,86.199,86.152,4.00426145]
[1773340007405,3.13656542,86.199,86.149,21.61517456]
[1773340007406,10.438,86.208,86.162,4.00426145]
[1773340007901,3.4438813,86.22,86.162,4.00426145]
[1773340008405,3.4438813,86.23,86.181,4.00426145]
[1773340008900,13.8788813,86.23,86.19,10.44]
[1773340009102,13.8788813,86.23,86.181,4.00426145]
[1773340009704,10.435,86.23,86.181,4.00426145]
[1773340010006,10.436,86.222,86.183,10.441]
[1773340013210,10.437,86.216,86.181,4.00426145]
[1773340013407,3.15716464,86.216,86.165,3.84389218]
[1773340013800,3.15716464,86.216,86.175,10.442]
[1773340014000,3.15716464,86.216,86.175,14.28589218]
[1773340014304,3.15716464,86.216,86.181,10.441]
[1773340015708,10.436,86.225,86.181,10.441]
[1773340016312,10.436,86.225,86.188,14.28389218]
[1773340016611,3.15264697,86.231,86.188,14.28389218]
[1773340016810,3.15264697,86.231,86.181,10.441]
[1773340017812,3.1405448,86.223,86.181,10.441]
[1773340018908,10.436,86.22,86.181,10.441]
[1773340019314,3.1405448,86.223,86.181,10.441]
[1773340019713,10.436,86.227,86.184,3.84389218]
[1773340019915,3.14092521,86.245,86.184,3.84389218]